Cogmind - Beta 15 @@@ ROGUE MODE // 2025.08.16 @ 22:04:33 Player: Florist Result: Destroyed by P-80 Master with Gamma Rifle Performance ------------- Evolutions (7) 3500 Regions Visited (18) 3600 Robots Destroyed (279) 1395 Value Destroyed (11379) 11379 Prototype IDs (41) 820 Alien Tech Used (3) 600 Bonus (7079) 7079 TOTAL SCORE: 28373 Bonus ------- High Alert Combat Kills 743 Follower Combat Kills 408 Met Zhirov 300 Met Warlord at Base 500 MAIN.C Attacked Warlord 500 Warlord Defense Kills 2616 Scanned by Researcher 500 Acquired SGEMP 2000 Friendly Fire -488 Cogmind --------- Core Integrity 0/1300 Matter 296/300 Energy 98/100 System Corruption 54% Temperature Cool (0) Movement Core (50) Location -3/Testing Parts ------- > --- POWER (2) -------- (None) > --- PROPULSION (4) --- (None) > --- UTILITY (11) ----- (None) > --- WEAPON (5) ------- (None) > --- INVENTORY (5) ---- Advanced Heat Sink Potential Cannon SGEMP Prototype Peak State ------------ > --- POWER ------------ Reinforced Antimatter Reactor Micro Antimatter Reactor > --- PROPULSION ------- Thunder Leg Myomer Leg Advanced VSS Leg Experimental Myomer Leg > --- UTILITY ---------- Advanced Heat Sink Advanced Cooling System Huge Storage Unit Advanced Energy Well Advanced Signal Interpreter Advanced Target Analyzer Core Analyzer Improved Transmission Jammer Experimental Reaction Control System Centrium Light Armor Plating Advanced Force Field > --- WEAPON ----------- Gatling Laser Gatling Laser Gatling Laser Gatling Laser Improved KE Penetrator > --- INVENTORY -------- Light Antimatter Reactor Flexi-carbon Leg Flexi-carbon Leg Flexi-carbon Leg Advanced Heat Sink Advanced Heat Sink 2N-1CE's Frost Array Experimental Energy Well Improved Matter Compressor Advanced Signal Interpreter AEGIS Remote Shield Advanced Point Defense System Advanced Hacking Suite Potential Cannon High-powered Shotgun Coil Gun Coil Gun Micro-nuke Launcher Micro-nuke Launcher Impact Mace Sapper Charge SGEMP Prototype [Rating: 153] Favorites ----------- Power Constructs Engine Ion Engine Power Core Micro Fission Core Reactor Constructs Propulsion Light Treads Treads Light Treads Leg Constructs Wheel Armored Wheel Flight Unit Improved Flight Unit Utility Huge Storage Unit Device Armored Scrap Engine Storage Huge Storage Unit Processor Improved Target Analyzer Hackware Hacking Suite Protection Improved Medium Armor Plating Weapon Constructs Energy Gun Constructs Energy Cannon Advanced Beam Cannon Ballistic Gun Heavy Assault Rifle Ballistic Cannon Advanced Assault Cannon Launcher Micro-nuke Launcher Special Weapon Mining Laser Impact Weapon Impact Mace Slashing Weapon Makeshift Sword Build | -11 -10 -10 -8 -7 -7 -7 -5 -5 -5 -5 -4 -4 -4 -4 -4 -3 -3 -3 ------- Run | Yrd Mat Sub Mat Fac Sto Rec Fac Upp Upp War Pro Fac Upp Upp Zhi Pro Res Tes Slots Evolved 14 | . . . 4 2 . . 4 . . . . 2 . . . . 2 . Power 1 | . . . . . . . . . . . . 1 . . . . . . Propulsion 2 | . . . 2 . . . . . . . . . . . . . . . Utility 9 | . . . 1 2 . . 3 . . . . 1 . . . . 2 . Weapon 2 | . . . 1 . . . 1 . . . . . . . . . . . Parts Attached 156 | 7 12 5 21 1 8 4 8 2 2 3 2 9 5 . 2 3 20 42 Power 13 | 1 1 1 1 . . . . . . . 1 2 1 . 1 . . 4 Engine 5 | 1 1 1 1 . . . . . . . . 1 . . . . . . Core 2 | . . . . . . . . . . . 1 . 1 . . . . . Reactor 6 | . . . . . . . . . . . . 1 . . 1 . . 4 Propulsion 26 | 2 2 1 10 . 3 . . . . . . . . . . . . 8 Treads 13 | 2 2 . 6 . 3 . . . . . . . . . . . . . Leg 8 | . . . . . . . . . . . . . . . . . . 8 Wheel 4 | . . 1 3 . . . . . . . . . . . . . . . Hover . | . . . . . . . . . . . . . . . . . . . Flight 1 | . . . 1 . . . . . . . . . . . . . . . Utility 73 | 2 4 1 4 . 3 1 7 2 1 1 1 6 4 . 1 1 15 19 Device 31 | 1 1 . 2 . 1 1 1 1 . 1 1 3 . . . 1 8 9 Storage 7 | 1 3 . . . . . 1 . . . . . . . . . . 2 Processor 18 | . . 1 1 . . . 1 1 1 . . 1 2 . . . 4 6 Hackware 2 | . . . . . . . 2 . . . . . . . . . . . Protection 15 | . . . 1 . 2 . 2 . . . . 2 2 . 1 . 3 2 Artifact . | . . . . . . . . . . . . . . . . . . . Weapon 44 | 2 5 2 6 1 2 3 1 . 1 2 . 1 . . . 2 5 11 Energy Gun 18 | 2 3 . 1 . 1 2 . . . 2 . . . . . . 2 5 Energy Cannon 2 | . 1 . . . . . . . . . . . . . . . . 1 Ballistic Gun 12 | . . 2 4 . 1 . . . . . . . . . . . . 5 Ballistic Cannon 3 | . . . . . . . 1 . . . . 1 . . . . 1 . Launcher 5 | . . . 1 . . . . . 1 . . . . . . 2 1 . Special Weapon 1 | . 1 . . . . . . . . . . . . . . . . . Impact Weapon 2 | . . . . 1 . 1 . . . . . . . . . . . . Slashing Weapon 1 | . . . . . . . . . . . . . . . . . 1 . Piercing Weapon . | . . . . . . . . . . . . . . . . . . . Special Melee Weapon . | . . . . . . . . . . . . . . . . . . . Unidentified Prototypes 24 | . 1 . 2 . 1 1 1 . . 2 . 2 1 . 1 . 3 9 Corrupted Parts 1 | . . . . . . . . . . . . . . . . 1 . . System Corruption 10 | . . . . . . . . . . . . . . . . 10 . . Parts Lost 75 | . . 6 . . 5 . . 1 . 4 1 7 3 . . . 6 42 Power 9 | . . 1 . . . . . . . . 1 2 1 . . . . 4 Propulsion 14 | . . 4 . . 2 . . . . . . . . . . . . 8 Utility 32 | . . 1 . . 1 . . 1 . 2 . 4 2 . . . 4 17 Weapon 20 | . . . . . 2 . . . . 2 . 1 . . . . 2 13 Highest Loss Streak 19 | . . 4 . . 2 . . 1 . 3 1 4 2 . . . 3 19 To Critical Strikes 3 | . . . . . . . . . . . . 1 . . . . . 2 Average Backups 19 | 3 11 17 23 24 24 17 20 22 23 21 18 17 19 22 23 22 22 17 Power . | . . . . 2 2 . . . 1 1 . . . . . . . . Propulsion 4 | 1 3 3 4 6 6 3 3 3 3 . 2 2 5 8 7 7 6 3 Utility 6 | . 3 3 5 5 4 5 8 10 10 10 8 6 6 7 7 7 7 8 Weapon 8 | . 4 10 12 11 10 7 8 8 7 8 7 8 7 7 7 6 7 4 Tool/Special . | . . . . . . . . . . . . . . . . . . . Unused Backups 92 | . 6 . 13 . 3 12 7 3 2 6 1 5 1 . 2 1 16 14 Power 7 | . . . 1 . 1 2 . 2 . . . . . . . . . 1 Propulsion 44 | . 2 . 3 . 1 6 7 . 2 3 . 3 . . 1 . 9 7 Utility 18 | . 2 . 6 . . . . . . . . . . . 1 1 5 3 Weapon 23 | . 2 . 3 . 1 4 . 1 . 3 1 2 1 . . . 2 3 Tool/Special . | . . . . . . . . . . . . . . . . . . . Average Slot Usage (%) 71 | . 99 86 99 92 96 64 55 58 58 57 57 53 44 50 55 57 56 76 Engine 4 | . 14 13 9 7 7 3 5 5 5 4 . 1 . . . . . . Core 1 | . . . . . . 2 . . . . 4 2 1 5 5 2 . . Reactor 1 | . . . . . . . . . . . . 2 3 . 2 5 3 5 Treads 11 | . 27 10 25 30 29 16 2 5 5 1 . 2 5 5 5 5 2 . Leg 1 | . . . . . . . . . . 3 5 2 . . . . . 13 Wheel 1 | . . 8 10 . . . . . . . . . . . . . . . Device 13 | . 14 2 6 7 9 15 16 16 17 16 16 14 12 10 10 10 14 16 Storage 7 | . 14 14 9 7 7 7 5 5 5 5 5 5 5 5 5 5 4 7 Processor 8 | . . 9 9 7 7 7 5 11 11 11 11 9 7 10 10 10 13 14 Protection 4 | . . . 2 7 9 . 2 4 5 5 5 4 3 10 13 15 9 2 Energy Gun 4 | . 27 7 . . 5 1 . . . . . . . . . . . 10 Energy Cannon 1 | . . . . . . 2 5 4 . . 5 2 . 5 5 5 1 . Ballistic Gun 5 | . . 20 26 22 17 1 . . . . . . . . . . . 3 Ballistic Cannon 1 | . . . . . . 3 . . 5 4 . 2 4 . . . 2 . Peak Build Rating 153 | 7 12 14 30 32 40 53 70 74 78 88 87 94 86 87 100 106 143 153 Average Rating 61 | 5 10 12 26 32 33 48 59 69 72 77 84 82 79 86 94 97 112 113 On Entrance 59 | . 7 12 13 29 32 40 50 70 69 72 86 83 81 86 87 100 94 114 Naked Turns 6 | . . . . . . . . . . . . . . . . . . 6 Heaviest Build 163 | 12 92 92 102 103 109 104 107 110 117 104 101 110 104 97 111 128 139 163 Greatest Support 118 | 40 40 40 82 82 82 80 118 118 118 118 85 85 85 85 85 85 116 102 Greatest Overweight (x) 7 | . 2 7 2 1 1 2 1 . . 1 1 1 1 1 1 1 2 2 Average Overweight (x) 1 | . . 5 1 1 1 1 . . . . 1 1 1 1 1 1 . 1 Largest Inventory Capacity 25 | 8 25 25 25 25 25 25 25 25 25 25 25 25 25 25 25 25 25 25 Average Capacity 23 | 7 17 25 25 25 25 25 25 25 25 25 25 25 25 25 25 25 25 24 Most Carried 25 | 5 21 20 25 24 25 25 25 25 24 25 23 23 24 25 25 25 25 25 Average Carried 20 | 3 11 17 23 24 24 17 20 22 23 23 20 19 21 24 24 24 23 20 Final Capacity 25 | 8 25 25 25 25 25 25 25 25 25 25 25 25 25 25 25 25 25 5 Final Carried 25 | 5 20 17 25 24 25 15 24 22 22 23 20 23 24 25 25 25 21 5 Scrap Engine Consumption 110 | . . . . . . 27 11 6 2 12 2 8 8 . 1 1 26 6 Constructs Created 5 | . . . . . . 3 . . . . . . . . . . 1 1 Constructs Modified 46 | . . . . . . 9 5 4 . 7 . 4 3 . . . 14 . Class Distribution -------------------- 29% | Mutant 21% | Construct 11% | Skirmisher 10% | Scavenger-Mutant 7% | Commander-Construct 7% | Scavenger-Gunner 3% | Scavenger-Construct 3% | Scavenger-Tank Dominant Class ---------------- Mutant | -10/Materials Mutant | -10/Subcaves Skirmisher | -8/Materials Skirmisher | -7/Factory Skirmisher | -7/Storage Construct | -7/Recycling Commander-Construct | -5/Factory Construct | -5/Upper Caves Construct | -5/Upper Caves Construct | -5/Warlord Scavenger-Construct | -4/Proximity Caves Scavenger-Mutant | -4/Factory Mutant | -4/Upper Caves Mutant | -4/Upper Caves Scavenger-Mutant | -4/Zhirov Mutant | -3/Proximity Caves Scavenger-Gunner | -3/Research Scavenger-Gunner | -3/Testing Resources | -11 -10 -10 -8 -7 -7 -7 -5 -5 -5 -5 -4 -4 -4 -4 -4 -3 -3 -3 ----------- Run | Yrd Mat Sub Mat Fac Sto Rec Fac Upp Upp War Pro Fac Upp Upp Zhi Pro Res Tes Matter Collected 9182 | 267 173 156 1067 . 543 192 580 266 153 332 26 749 638 130 309 273 1619 1709 Remotely 10 | . . . . . . . . 10 . . . . . . . . . . Salvage Created 12056 | 69 548 212 1594 . 1158 292 642 412 295 801 23 582 257 78 309 282 1640 2862 Parts 480 | 6 44 13 84 . 37 10 28 19 2 19 4 20 5 . 1 10 78 100 Haulers Intercepted 15 | . 2 . 5 . 3 . . . . . . 3 . . . . 1 1 Recyclers Shooed 4 | . 2 . . . . 1 . . . . . . . . . . . 1 Parts Field Recycled . | . . . . . . . . . . . . . . . . . . . Retrieved Matter . | . . . . . . . . . . . . . . . . . . . Parts Self-Destructed 51 | . . 8 . . . . . 15 1 . 4 . 9 10 . 4 . . Prevented 8 | . . . . . . . . . . . . . . 1 1 6 . . Kills | -11 -10 -10 -8 -7 -7 -7 -5 -5 -5 -5 -4 -4 -4 -4 -4 -3 -3 -3 ------- Run | Yrd Mat Sub Mat Fac Sto Rec Fac Upp Upp War Pro Fac Upp Upp Zhi Pro Res Tes Combat Hostiles Destroyed 193 | . 15 7 23 . 13 4 5 10 3 24 6 11 4 . . 10 19 39 Melee 1 | . . . . . . . . . . . . . . . . . . 1 Guns 80 | . 15 7 20 . 11 . . . . . . . . . . . 1 26 Cannons 57 | . . . . . . 4 5 5 . 9 6 11 4 . . 4 9 . AOE 43 | . . . 3 . 2 . . 5 3 14 . . . . . 4 5 7 Classes Destroyed 27 | 1 7 1 3 . 1 1 2 . 1 3 1 1 2 . . 1 . 2 Worker 11 | . 1 . 5 . 1 . 1 . . . . . . . . . 2 1 Builder 18 | . 2 . 1 . 1 . . . . . . 2 . . . . 5 7 Tunneler 5 | 3 . . 1 . . . . . . . . 1 . . . . . . Hauler 16 | . 2 . 5 . 3 . 1 . . . . 3 . . . . 1 1 Recycler 17 | . 2 . 4 . 3 1 1 . . . . . . . . . 5 1 Mechanic 2 | . . . . . . . 1 . . 1 . . . . . . . . Drone 1 | . . . . . . . . . . . . . . . . 1 . . Watcher 10 | . 3 . 4 . 1 . . . . . . . . . . . 2 . Swarmer 41 | . 12 . 10 . 1 1 2 4 1 . 5 . . . . 5 . . Saboteur 3 | . . . . . . . . . . 2 . . . . . . . 1 Grunt 64 | . 3 2 7 . 7 . . 4 1 14 . 3 . . . 3 1 19 Brawler 6 | . . . 1 . . . . . . 2 . . . . . . . 3 Duelist 6 | . . . . . . 1 . . . 2 . 1 1 . . . . 1 Protector 2 | . . . . . . . 1 . . 1 . . . . . . . . Researcher 3 | . . . . . . . . . . . . . 1 . . . . 2 Sentry 18 | . . . 4 . 4 1 2 . 1 . . 2 . . . . 4 . Demolisher 2 | . . . . . . . . . . 2 . . . . . . . . Specialist 4 | . . . . . . . . . . . . 1 . . . . . 3 Hunter 13 | . . . 1 . . . . 2 . . . 2 . . . . 6 2 Programmer 25 | . . . . . 1 2 2 . . . . 2 2 . . 1 8 7 Behemoth 1 | . . . . . . . . . . . 1 . . . . . . . Striker 2 | . . . . . . . . . . . . . . . . . . 2 Executioner 1 | . . . . . . . . . . 1 . . . . . . . . Alpha 7 1 | . . . . . . . . . . . . . . . . . . 1 Subdweller 5 | . . 5 . . . . . . . . . . . . . . . . Samaritan 8 | . . . . . . . . . 2 . . . 3 3 . . . . Thug 1 | . . . . . . . . . . 1 . . . . . . . . Mutant 1 | . . . . . . . . . . . . . 1 . . . . . Best Kill Streak 15 | 3 3 2 9 . 8 1 4 4 3 15 5 6 2 . . 5 11 9 Combat Bots Only 14 | . 3 2 4 . 7 1 2 4 3 14 5 3 2 . . 5 4 7 Max Kills in Single Turn 5 | 1 2 1 2 . 2 2 2 2 2 4 2 1 1 1 . 3 5 3 Gunslinging 1 | . 1 . 1 . . . . . . . . . . . . . . . Exploded 4 | . . . 2 . 2 . . 2 2 4 . . . . . 3 2 2 Melee 1 | . . . . . . . . . . . . . . . . . . 1 Uniques/NPCs Destroyed . | . . . . . . . . . . . . . . . . . . . Combat | -11 -10 -10 -8 -7 -7 -7 -5 -5 -5 -5 -4 -4 -4 -4 -4 -3 -3 -3 -------- Run | Yrd Mat Sub Mat Fac Sto Rec Fac Upp Upp War Pro Fac Upp Upp Zhi Pro Res Tes Hostile Shots Fired 1578 | . 49 38 91 . 227 16 10 32 17 68 45 147 22 . . 30 344 442 Missed 543 | . 13 10 24 . 78 10 1 11 6 28 18 54 6 . . 8 143 133 Hits 1035 | . 36 28 67 . 149 6 9 21 11 40 27 93 16 . . 22 201 309 Melee 25 | . . . 1 . . . . . . . . . 2 . . . . 22 Projectile 1010 | . 36 28 66 . 149 6 9 21 11 40 27 93 14 . . 22 201 287 AOE 8 | . . . . . . . . . . 8 . . . . . . . . Critical Strikes 54 | . . 1 6 . 3 . 1 2 . 1 1 3 2 . . 2 9 23 Actively Blocked 2 | . . . . . . . . . . . . . . . . 1 1 . Part Disruptions 1 | . . . . . . . . . . . . . . . . . . 1 Damage Taken 17717 | . 305 665 1003 . 1491 55 130 370 125 1054 347 1634 420 . . 538 4055 5525 Core 2385 | . 43 155 112 . 177 14 46 34 19 235 35 142 99 . . 30 264 980 Absorbed by Shields 1249 | . . . . . . . 103 . . . . . . . . . . 1146 Redirected to Shielding 204 | . . . . . . . . . . . . . . . . 85 119 . Ignored by Resistances 90 | . . . . . . . . . . . . . . . . . . 90 Regen/Repaired (Parts) 3248 | . . . . . . . 57 80 . 441 100 415 416 . . . 1739 . Core Remaining (%) 68 | 100 . 20 79 . . 72 . . . . 63 . . . . 76 . . Volleys Fired 602 | 5 42 24 85 . 55 12 20 16 8 23 11 58 44 5 15 18 80 81 Largest 5 | 2 2 2 3 . 3 3 1 2 3 3 1 1 1 1 1 3 3 5 Hottest 353 | 90 130 130 69 . 145 150 74 110 149 149 74 74 74 74 74 172 247 353 Shots Fired 1156 | 10 82 44 249 . 159 14 20 20 12 33 11 57 41 5 14 22 90 273 Gun 813 | 10 80 44 246 . 157 3 . . . . . . . . . . 8 265 Cannon 301 | . . . . . . 11 20 16 8 23 11 57 41 5 14 17 74 4 Launcher 40 | . . . 3 . 2 . . 4 4 10 . . . . . 5 8 4 Special 2 | . 2 . . . . . . . . . . . . . . . . . Kinetic 671 | . . 32 246 . 129 9 20 12 . . . 30 41 . . . 43 109 Thermal 329 | 10 82 12 . . 28 5 . 4 8 23 . . . . . . 11 146 Explosive 40 | . . . 3 . 2 . . 4 4 10 . . . . . 5 8 4 Electromagnetic 56 | . . . . . . . . . . . . . . 5 14 17 20 . Entropic 60 | . . . . . . . . . . . 11 27 . . . . 8 14 Robot Hit Streak 49 | 4 12 20 12 . 31 14 15 9 9 14 22 49 15 8 13 3 14 15 Robot Miss Streak 10 | 2 10 3 4 . 7 4 4 3 3 4 2 5 1 . 1 3 5 8 Penetration Max 1 | . . . . . . . . . . . . . . . . . 1 1 Secondary Targets 18 | . 1 . 2 . 4 . . . . . . . . . . . . 11 Max Gunslinging Chain 1 | . 1 . 1 . 1 . . . . . . . . . . . . 1 Shots Hit Robots 840 | 6 65 37 169 . 111 11 15 16 6 22 11 51 27 5 12 11 49 216 Core Hits 706 | 3 70 24 71 . 45 14 29 29 18 106 12 51 8 2 10 13 49 152 Critical Kills 13 | . . . 1 . . . . . . . . . . . . . 1 11 Critical Parts Destroyed 24 | . . 1 4 . . . . . . . . 2 . . . . 3 14 Critical Strikes 48 | 1 . 1 5 . 1 . . . . . . 2 . . 1 1 9 27 Burn 2 | 1 . . . . 1 . . . . . . . . . . . . . Destroy 27 | . . 1 5 . . . . . . . . . . . . . 2 19 Blast 4 | . . . . . . . . . . . . . . . . . 4 . Corrupt 3 | . . . . . . . . . . . . . . . 1 1 1 . Smash 4 | . . . . . . . . . . . . 2 . . . . . 2 Sever 2 | . . . . . . . . . . . . . . . . . . 2 Detonate 6 | . . . . . . . . . . . . . . . . . 2 4 Melee Attacks 64 | . . . . 4 1 1 1 10 . . . 10 10 . . . 1 26 Impact 54 | . . . . 4 1 1 1 10 . . . 10 10 . . . . 17 Slashing 10 | . . . . . . . . . . . . . . . . . 1 9 Piercing . | . . . . . . . . . . . . . . . . . . . Sneak Attacks 13 | . . . . . . . . . . . . 3 1 . . . . 9 Combat Hostiles . | . . . . . . . . . . . . . . . . . . . Follow-up Attacks . | . . . . . . . . . . . . . . . . . . . Damage Inflicted 33132 | 83 745 611 2915 . 1930 420 964 1222 679 4487 820 2636 1482 344 410 1153 4754 7477 Guns 11259 | 83 745 611 2561 . 1780 . . . . . . . . . . . 255 5224 Cannons 12678 | . . . . . . 420 964 812 365 1496 820 2211 1375 344 410 637 2765 59 Explosions 7728 | . . . 354 . 150 . . 410 314 2991 . . . . . 516 1733 1260 Melee 1466 | . . . . . . . . . . . . 425 107 . . . . 934 Ramming 1 | . . . . . . . . . . . . . . . . . 1 . Kinetic 12197 | . . 403 2561 . 1360 258 964 670 . . . 757 1375 . . . 1614 2235 Thermal 7647 | 83 745 208 . . 420 162 . 142 365 1496 . . . . . . 867 3159 Explosive 6723 | . . . 354 . 150 . . 410 314 2991 . . . . . 516 1307 681 Electromagnetic 2101 | . . . . . . . . . . . . . . 344 410 637 710 . Impact 998 | . . . . . . . . . . . . 425 107 . . . . 466 Slashing 468 | . . . . . . . . . . . . . . . . . . 468 Piercing . | . . . . . . . . . . . . . . . . . . . Entropic 2997 | . . . . . . . . . . . 820 1454 . . . . 255 468 Highest Corruption 54 | . . . . . 3 4 1 1 1 1 . 6 7 7 7 18 8 54 Average Corruption 6 | . . . . . 2 3 1 1 1 1 . 2 6 7 7 7 4 17 Corruption Purged 5 | . . . . . . . . . . . . . . . . . 5 . Corruption Blocked . | . . . . . . . . . . . . . . . . . . . Effects 254 | . . . . . 9 38 1 6 2 . . 9 33 15 12 14 31 84 Message Errors 56 | . . . . . 3 9 1 . 1 . . 2 7 4 2 1 9 17 Matter Fused 59 | . . . . . 1 10 . 2 . . . 4 8 1 2 4 7 20 Heat Flow Errors 27 | . . . . . 1 5 . . . . . 1 5 3 1 . 4 7 Energy Discharges 31 | . . . . . . 6 . 3 . . . 1 1 2 4 4 2 8 Parts Rejected 3 | . . . . . . . . . . . . . . . . 1 1 1 Parts Fused 4 | . . . . . . 2 . . . . . . . . . 1 . 1 Data Loss (minor) 23 | . . . . . . 4 . . 1 . . . 6 2 . . 5 5 Data Loss (major) 15 | . . . . . 2 2 . . . . . . 2 1 2 2 1 3 Misfires 8 | . . . . . . . . . . . . . . . . . . 8 Alerts 8 | . . . . . . . . 1 . . . . 1 2 . 1 . 3 Misdirections 2 | . . . . . . . . . . . . . . . . . . 2 Weapon Failures 18 | . . . . . 2 . . . . . . 1 3 . 1 . 2 9 Overload Shots . | . . . . . . . . . . . . . . . . . . . Overflow Damage 1564 | . . . 55 . . . 2 12 47 10 6 215 239 122 128 39 242 447 Projectiles 734 | . . . . . . . 2 12 26 2 6 33 187 122 128 39 177 . Explosions 222 | . . . 55 . . . . . 21 8 . . . . . . 65 73 Melee 608 | . . . . . . . . . . . . 182 52 . . . . 374 Knockbacks 52 | . . . . . . 2 12 6 . . . 14 6 . . . 11 1 Impact 2 | . . . . . . . . . . . . . 1 . . . . 1 Kinetic 48 | . . . . . . 2 11 6 . . . 13 5 . . . 11 . Secondary 2 | . . . . . . . 1 . . . . 1 . . . . . . Self-Inflicted Damage 938 | . . . 22 . 18 . . . . . . . . . . 58 381 459 Shots 15 | . . . 1 . 1 . . . . . . . . . . 2 5 6 Rammed . | . . . . . . . . . . . . . . . . . . . Targets Rammed 1 | . . . . . . . . . . . . . . . . . 1 . Kicked 1 | . . . . . . . . . . . . . . . . . 1 . Crushed . | . . . . . . . . . . . . . . . . . . . Highest Temperature 421 | 120 320 249 87 . 347 232 . 30 9 127 . 418 230 232 91 60 338 421 Average Temperature 75 | 53 90 76 27 . 65 59 . 16 4 52 . 193 90 128 66 27 109 107 Received Heat Transfer 3309 | . 36 517 423 . 522 6 12 9 30 174 18 204 139 . . 69 135 1015 Effects 5 | . 3 . . . 1 . . . . . . . . . . . . 1 Shutdowns 2 | . . . . . 1 . . . . . . . . . . . . 1 Interference 3 | . 3 . . . . . . . . . . . . . . . . . Siege Activations . | . . . . . . . . . . . . . . . . . . . Martial Activations . | . . . . . . . . . . . . . . . . . . . Shielding Activations . | . . . . . . . . . . . . . . . . . . . Robots Disrupted . | . . . . . . . . . . . . . . . . . . . Combat Hostiles . | . . . . . . . . . . . . . . . . . . . Robots Corrupted 10 | . . . . . . . . . . . . 1 1 . . 2 4 2 Combat Hostiles 6 | . . . . . . . . . . . . . . . . 2 4 . Parts Fried 12 | . . . . . . . . . . . . 2 1 . . 4 3 2 Impact Corruptions 16 | . . . . . . . . . . . . 6 2 . . . . 8 Robots Melted 7 | . . . . . . . . . . 1 . . . . . . . 6 Combat Hostiles 6 | . . . . . . . . . . 1 . . . . . . . 5 Parts Melted 33 | 1 . 1 . . 2 . . 2 1 4 . . . . . . . 22 Heat Transferred 14182 | 297 984 255 . . 962 407 . 370 888 3372 . . . . . . 472 6175 Parts Sabotaged 7 | . . . . . . . . . . . . . . . . . . 7 Parts Stolen . | . . . . . . . . . . . . . . . . . . . Parts Stripped . | . . . . . . . . . . . . . . . . . . . Power Chain Reactions . | . . . . . . . . . . . . . . . . . . . Alert | -11 -10 -10 -8 -7 -7 -7 -5 -5 -5 -5 -4 -4 -4 -4 -4 -3 -3 -3 ------- Run | Yrd Mat Sub Mat Fac Sto Rec Fac Upp Upp War Pro Fac Upp Upp Zhi Pro Res Tes Maximum Alert Level 2 | . . . 1 . 1 . 2 . . . . . . . . . 2 2 Low Security (%) 59 | 100 100 . 43 100 95 100 . . . . . 100 . . . . 3 . Level 1 21 | . . . 56 . 4 . 57 . . . . . . . . . 44 24 Level 2 18 | . . . . . . . 42 . . . . . . . . . 52 75 Level 3 . | . . . . . . . . . . . . . . . . . . . Level 4 . | . . . . . . . . . . . . . . . . . . . Level 5 . | . . . . . . . . . . . . . . . . . . . High Security . | . . . . . . . . . . . . . . . . . . . Max Security . | . . . . . . . . . . . . . . . . . . . Peak Influence 684 | 10 96 . 374 127 211 161 481 . . . . 117 . . . . 673 684 Initial 481 | . . . . 127 . 56 343 . . . . 57 . . . . 481 357 Average 190 | 1 23 . 204 37 79 61 383 . . . . 56 . . . . 390 477 Influence Increases 7250 | 15 492 50 795 28 452 379 848 240 85 485 140 348 75 . 15 215 1384 1204 Destroy 0b10 Robot/C 4000 | . 300 40 460 . 260 140 300 200 60 460 120 220 60 . . 180 380 820 Destroy 0b10 Robot/NC 425 | 15 50 . 100 . 45 5 15 . 10 10 . 30 . . 15 5 75 50 Destroy Leader 670 | . 60 10 108 . 78 . 60 40 . . 20 36 10 . . 30 116 102 Allied During Kill 170 | . . . . . . 34 131 . . . . . 5 . . . . . Successful Hack 223 | . 37 . 53 24 4 49 21 . . . . 7 . . . . 14 14 Select Force Hacks 150 | . . . . . . 150 . . . . . . . . . . . . Disable Machine 225 | . 15 . 15 . 30 . 15 . . . . . . . . . 75 75 Destroy Structure 442 | . . . 29 4 20 1 6 . . . . 40 . . . . 244 98 Advance Influence 750 | . . . . . . . 300 . . . . . . . . . 450 . Partial Spotted 45 | . . . 15 . . . . . . . . 15 . . . . 15 . Lose Combat Pursuer 150 | . 30 . 15 . 15 . . . 15 15 . . . . . . 15 45 Influence Decreases 6659 | 15 492 50 515 308 306 421 649 507 84 123 447 375 140 . 15 168 794 1250 Entered New Map 1217 | . . . . 153 . 90 61 113 8 37 399 35 25 . . . 16 280 Time Decay 4432 | 15 492 40 515 155 256 331 398 394 76 46 48 280 85 . 15 168 568 550 Search Patrol Dispatched 150 | . . . . . . . . . . . . . . . . . 150 . Lost Part 650 | . . 10 . . 50 . . . . 40 . 60 10 . . . 60 420 Lost Ally 210 | . . . . . . . 190 . . . . . 20 . . . . . Squads Dispatched 25 | . 1 . 1 . 2 . 3 . . . . 3 . . . . 5 10 Investigation 4 | . 1 . . . . . 1 . . . . . . . . . 1 1 Extermination 9 | . . . . . 1 . 1 . . . . 1 . . . . 3 3 Reinforcement 9 | . . . 1 . 1 . 1 . . . . 2 . . . . 1 3 Assault 3 | . . . . . . . . . . . . . . . . . . 3 Garrison . | . . . . . . . . . . . . . . . . . . . Intercept . | . . . . . . . . . . . . . . . . . . . Searches Triggered 1 | . . . . . . . . . . . . . . . . . 1 . Construction Impeded 2 | . . . . . . . . . . . . . . . . . 1 1 Haulers Reinforced 2 | . . . . . 1 . 1 . . . . . . . . . . . Active Scanning Responses . | . . . . . . . . . . . . . . . . . . . Cargo Convoy Interrupts . | . . . . . . . . . . . . . . . . . . . Stealth | -11 -10 -10 -8 -7 -7 -7 -5 -5 -5 -5 -4 -4 -4 -4 -4 -3 -3 -3 --------- Run | Yrd Mat Sub Mat Fac Sto Rec Fac Upp Upp War Pro Fac Upp Upp Zhi Pro Res Tes Distress Signals 17 | . 2 . 5 . 4 3 . . . . . 1 . . . . 1 1 Communications Jammed 3 | . . . . . . . . . . . . . . . . . . 3 Distress Signals 3 | . . . . . . . . . . . . . . . . . . 3 Times Spotted 290 | . 28 7 37 . 17 7 10 7 4 54 6 16 4 . . 12 31 50 Peak Tracking Total 19 | . 5 3 5 . 7 2 6 4 3 19 5 5 2 . . 6 4 6 Tactical Retreats 8 | . 2 . 1 . 1 . . . 1 1 . . . . . . 1 1 Traps | -11 -10 -10 -8 -7 -7 -7 -5 -5 -5 -5 -4 -4 -4 -4 -4 -3 -3 -3 ------- Run | Yrd Mat Sub Mat Fac Sto Rec Fac Upp Upp War Pro Fac Upp Upp Zhi Pro Res Tes Traps Triggered 7 | . 2 . 1 . . . . . . . . 1 . . . . . 3 Indirectly . | . . . . . . . . . . . . . . . . . . . Trap Hack Attempts . | . . . . . . . . . . . . . . . . . . . Triggered . | . . . . . . . . . . . . . . . . . . . Disarmed . | . . . . . . . . . . . . . . . . . . . Reprogrammed . | . . . . . . . . . . . . . . . . . . . Reused . | . . . . . . . . . . . . . . . . . . . Traps Extracted . | . . . . . . . . . . . . . . . . . . . Installed . | . . . . . . . . . . . . . . . . . . . Triggered . | . . . . . . . . . . . . . . . . . . . Machines | -11 -10 -10 -8 -7 -7 -7 -5 -5 -5 -5 -4 -4 -4 -4 -4 -3 -3 -3 ---------- Run | Yrd Mat Sub Mat Fac Sto Rec Fac Upp Upp War Pro Fac Upp Upp Zhi Pro Res Tes Machines Disabled 15 | . 1 . 1 . 2 . 1 . . . . . . . . . 5 5 Max in Single Turn 1 | . 1 . 1 . 1 . 1 . . . . . . . . . 1 1 Machines Repaired . | . . . . . . . . . . . . . . . . . . . Machines Dismantled . | . . . . . . . . . . . . . . . . . . . Machines Sabotaged . | . . . . . . . . . . . . . . . . . . . Overloaded Fab Kills . | . . . . . . . . . . . . . . . . . . . Hacking | -11 -10 -10 -8 -7 -7 -7 -5 -5 -5 -5 -4 -4 -4 -4 -4 -3 -3 -3 --------- Run | Yrd Mat Sub Mat Fac Sto Rec Fac Upp Upp War Pro Fac Upp Upp Zhi Pro Res Tes Machines Accessed 45 | . 9 . 8 1 2 12 2 . . 1 . 1 1 . 4 . 3 1 Terminals 27 | . 8 . 6 1 2 5 2 . . . . 1 . . . . 1 1 Fabricators 1 | . . . . . . . . . . . . . . . . . 1 . Repair Stations . | . . . . . . . . . . . . . . . . . . . Recycling Units 9 | . 1 . 1 . . 6 . . . . . . . . . . 1 . Scanalyzers 1 | . . . 1 . . . . . . . . . . . . . . . Garrison Access . | . . . . . . . . . . . . . . . . . . . Total Hacks 132 | . 26 . 33 1 5 31 6 . . 1 . 2 1 . 17 . 8 1 Successful 80 | . 12 . 23 1 2 18 1 . . 1 . 1 1 . 17 . 2 1 Failed 52 | . 14 . 10 . 3 13 5 . . . . 1 . . . . 6 . Catastrophic 11 | . 2 . 3 . 1 2 . . . . . . . . . . 3 . Database Lockouts . | . . . . . . . . . . . . . . . . . . . Manual 62 | . 19 . 17 . 7 18 . . . . . . . . . . . 1 Terminals 83 | . 24 . 26 1 5 14 6 . . . . 2 . . . . 4 1 Fabricators 2 | . . . . . . . . . . . . . . . . . 2 . Repair Stations . | . . . . . . . . . . . . . . . . . . . Recycling Units 20 | . 2 . 1 . . 15 . . . . . . . . . . 2 . Scanalyzers 6 | . . . 6 . . . . . . . . . . . . . . . Garrison Access . | . . . . . . . . . . . . . . . . . . . Terminal Hacks 33 | . 2 . 5 1 . 3 1 . . 1 . 1 1 . 17 . 1 . Record 5 | . . . . . . . . . . . . . . . 5 . . . Part Schematic 4 | . . . . . . . . . . . . . . . 4 . . . Robot Analysis 5 | . . . . . . 1 . . . . . . . . 4 . . . Prototype ID Bank 6 | . . . 2 . . . . . . . . . . . 4 . . . Open Door 2 | . . . . . . . . . . 1 . . 1 . . . . . Branch Access Points 3 | . . . 1 . . . 1 . . . . 1 . . . . . . Emergency Access Points 2 | . . . 1 1 . . . . . . . . . . . . . . Locate Traps 1 | . 1 . . . . . . . . . . . . . . . . . Dispatch Records 1 | . 1 . . . . . . . . . . . . . . . . . Hauler Manifests 1 | . . . 1 . . . . . . . . . . . . . . . Zone Layout 1 | . . . . . . . . . . . . . . . . . 1 . Release Object 2 | . . . . . . 2 . . . . . . . . . . . . Fabricator Hacks 1 | . . . . . . . . . . . . . . . . . 1 . Load Schematic 1 | . . . . . . . . . . . . . . . . . 1 . Repair Station Hacks . | . . . . . . . . . . . . . . . . . . . Recycling Unit Hacks 6 | . 1 . 1 . . 4 . . . . . . . . . . . . Retrieve Components 6 | . 1 . 1 . . 4 . . . . . . . . . . . . Scanalyzer 6 | . . . 6 . . . . . . . . . . . . . . . Insert Component 3 | . . . 3 . . . . . . . . . . . . . . . Analyze 3 | . . . 3 . . . . . . . . . . . . . . . Garrison Access Hacks . | . . . . . . . . . . . . . . . . . . . Unauthorized Hacks 34 | . 9 . 11 . 2 11 . . . . . . . . . . . 1 Terminals 29 | . 9 . 11 . 2 6 . . . . . . . . . . . 1 Track 1 | . . . . . . . . . . . . . . . . . . 1 Botnet 11 | . 4 . 6 . . 1 . . . . . . . . . . . . Skim 17 | . 5 . 5 . 2 5 . . . . . . . . . . . . Fabricators . | . . . . . . . . . . . . . . . . . . . Repair Stations . | . . . . . . . . . . . . . . . . . . . Recycling Units 5 | . . . . . . 5 . . . . . . . . . . . . Tunnel 5 | . . . . . . 5 . . . . . . . . . . . . Scanalyzers . | . . . . . . . . . . . . . . . . . . . Garrison Access . | . . . . . . . . . . . . . . . . . . . Data Cores Recovered . | . . . . . . . . . . . . . . . . . . . Used . | . . . . . . . . . . . . . . . . . . . Hacking Detections 33 | . 7 . 7 . 3 9 2 . . . . 1 . . . . 3 1 Full Trace Events 4 | . 1 . . . . 1 1 . . . . . . . . . 1 . Feedback Events 1 | . . . . . . 1 . . . . . . . . . . . . Corruption 1 | . . . . . . 1 . . . . . . . . . . . . Feedback Blocked . | . . . . . . . . . . . . . . . . . . . Robot Schematics Acquired . | . . . . . . . . . . . . . . . . . . . Robots Built . | . . . . . . . . . . . . . . . . . . . Authchips . | . . . . . . . . . . . . . . . . . . . Time . | . . . . . . . . . . . . . . . . . . . Total Robot Build Rating . | . . . . . . . . . . . . . . . . . . . Part Schematics Acquired 8 | . . . 3 . . . . . . . . . . . 4 . . 1 Parts Built . | . . . . . . . . . . . . . . . . . . . Authchips . | . . . . . . . . . . . . . . . . . . . Time . | . . . . . . . . . . . . . . . . . . . Total Part Build Rating . | . . . . . . . . . . . . . . . . . . . Parts Repaired . | . . . . . . . . . . . . . . . . . . . Time . | . . . . . . . . . . . . . . . . . . . Parts Recycled . | . . . . . . . . . . . . . . . . . . . Recycled Matter . | . . . . . . . . . . . . . . . . . . . Retrieved Matter . | . . . . . . . . . . . . . . . . . . . Retrieved Components 20 | . 1 . 2 . . 17 . . . . . . . . . . . . Parts Scanalyzed 3 | . . . 3 . . . . . . . . . . . . . . . Part Schematics Acquired 3 | . . . 3 . . . . . . . . . . . . . . . Parts Damaged . | . . . . . . . . . . . . . . . . . . . Bothacking | -11 -10 -10 -8 -7 -7 -7 -5 -5 -5 -5 -4 -4 -4 -4 -4 -3 -3 -3 ------------ Run | Yrd Mat Sub Mat Fac Sto Rec Fac Upp Upp War Pro Fac Upp Upp Zhi Pro Res Tes Used RIF Installer . | . . . . . . . . . . . . . . . . . . . Robots Hacked . | . . . . . . . . . . . . . . . . . . . Non-combat . | . . . . . . . . . . . . . . . . . . . Combat . | . . . . . . . . . . . . . . . . . . . Robot Hacks Applied . | . . . . . . . . . . . . . . . . . . . Relay Couplers Released . | . . . . . . . . . . . . . . . . . . . Fabnet Peak Effective % . | . . . . . . . . . . . . . . . . . . . Robots Rewired 20 | . . . . . . 17 . . . . . . 3 . . . . . Allies Hacked 2 | . . . . . . . 2 . . . . . . . . . . . Hacks Repelled . | . . . . . . . . . . . . . . . . . . . Allies | -11 -10 -10 -8 -7 -7 -7 -5 -5 -5 -5 -4 -4 -4 -4 -4 -3 -3 -3 -------- Run | Yrd Mat Sub Mat Fac Sto Rec Fac Upp Upp War Pro Fac Upp Upp Zhi Pro Res Tes Total Allies 20 | . . . . . . 17 . . . . . . 3 . . . . . Largest Group 16 | . . . . . . 16 16 . . . . . 3 . . . . . Highest-Rated Group 337 | . . . . . . 337 337 . . . . . 144 . . . . . Highest-Rated Ally 48 | . . . . . . 40 40 . . . . . 48 . . . . . Total Orders . | . . . . . . . . . . . . . . . . . . . Ally Attacks 89 | . . . . . . 12 66 . . . . . 11 . . . . . Total Damage 2006 | . . . . . . 233 1442 . . . . . 331 . . . . . Kills 15 | . . . . . . 3 12 . . . . . . . . . . . Allies Corrupted 1 | . . . . . . . 1 . . . . . . . . . . . Allies Melted 2 | . . . . . . . . . . 2 . . . . . . . . Intel | -11 -10 -10 -8 -7 -7 -7 -5 -5 -5 -5 -4 -4 -4 -4 -4 -3 -3 -3 ------- Run | Yrd Mat Sub Mat Fac Sto Rec Fac Upp Upp War Pro Fac Upp Upp Zhi Pro Res Tes Active Infowar (turns) 15765 | 50 2438 94 1507 490 781 2255 947 1002 405 1249 1110 408 . . . . 1621 1408 Optics 1062 | . . . . . . . . . . . . . . . . . 963 99 Sensors 9477 | . . . 1507 490 781 2255 947 1002 405 1249 . . . . . . 543 298 Terrain 109 | . . . . . . . . . . . . . . . . . . 109 Structural 998 | . . . . . . . . . . . . . . . . . 389 609 Seismic 4100 | 50 2438 94 . . . . . . . . 1110 408 . . . . . . Jamming 1004 | . . . . . . . . . . . . . . . . . . 1004 Robot Analysis Total 5 | . . . . . . 1 . . . . . . . . 4 . . . Derelict Logs Recovered 8 | . . . . . . . . 3 2 . 3 . . . . . . . Drone Launches . | . . . . . . . . . . . . . . . . . . . Drone Recoveries . | . . . . . . . . . . . . . . . . . . . Exploration | -11 -10 -10 -8 -7 -7 -7 -5 -5 -5 -5 -4 -4 -4 -4 -4 -3 -3 -3 ------------- Run | Yrd Mat Sub Mat Fac Sto Rec Fac Upp Upp War Pro Fac Upp Upp Zhi Pro Res Tes Turns Passed 20528 | 142 2443 684 2090 490 781 2255 947 1005 405 1386 1139 904 1310 407 323 511 1711 1595 Spaces Moved 8711 | 72 1056 267 727 200 210 565 532 465 519 701 531 334 618 227 163 260 740 524 Core 19 | 2 . . . . . . . . . . . . . . . . . 17 Treads 6319 | 70 1056 57 490 200 210 565 305 465 519 343 . 150 618 227 163 260 621 . Legs 1684 | . . . . . . . . . . 358 531 184 . . . . 104 507 Wheels 447 | . . 210 237 . . . . . . . . . . . . . . . Hover . | . . . . . . . . . . . . . . . . . . . Flight 242 | . . . . . . . 227 . . . . . . . . . 15 . Fastest Speed 39 | 50 160 195 105 238 238 226 39 39 39 39 204 175 175 175 175 175 109 50 Average Speed 176 | 156 209 221 196 238 240 240 140 39 39 182 204 190 175 175 175 175 172 204 Slowest Speed 320 | 160 320 320 243 238 243 303 213 39 39 224 204 204 175 175 175 175 241 282 Overloaded Moves . | . . . . . . . . . . . . . . . . . . . Propulsion Burnouts . | . . . . . . . . . . . . . . . . . . . Robots Hopped 1 | . . . . . . . . . . 1 . . . . . . . . Potential Cave-ins . | . . . . . . . . . . . . . . . . . . . Cave-ins Triggered . | . . . . . . . . . . . . . . . . . . . Teleports 1 | . . . . . . . . . . . . . . . . . 1 . Exploration Rate (%) 45 | 6 100 17 67 6 28 79 11 56 64 79 64 10 66 44 60 41 25 48 Regions Visited 18 Branch Regions 12 Pre-discovered Areas 13 | . 2 . . . . 5 . 1 . . 2 . . . 3 . . . Known Exits Taken 13 | . 1 1 1 1 1 1 1 1 1 1 1 1 . . . . 1 . Unknown Exits Taken 5 | 1 . . . . . . . . . . . . 1 1 1 1 . . Scrap Searched 7 | . . . . . . . . 2 3 . . . 1 1 . . . . Spaces Dug 89 | . . . . 4 . 1 1 10 . . . 11 18 . . 30 6 8 Terrain Destroyed 499 | . . . 28 4 23 1 2 35 9 35 6 22 24 . . 100 147 63 Melee 37 | . . . . 4 . 1 . 10 . . . 4 9 . . . 1 8 Projectile 133 | . . . . . . . 2 . . . 6 18 15 . . 4 61 27 AOE 327 | . . . 28 . 23 . . 25 9 35 . . . . . 96 85 26 Terrain Rammed . | . . . . . . . . . . . . . . . . . . . Walls Destroyed . | . . . . . . . . . . . . . . . . . . . Machines Disabled . | . . . . . . . . . . . . . . . . . . . Actions | -11 -10 -10 -8 -7 -7 -7 -5 -5 -5 -5 -4 -4 -4 -4 -4 -3 -3 -3 --------- Run | Yrd Mat Sub Mat Fac Sto Rec Fac Upp Upp War Pro Fac Upp Upp Zhi Pro Res Tes Total 12819 | 88 1210 315 1217 206 363 1457 716 1254 711 779 577 529 785 232 186 299 1097 798 Wait 2603 | . 53 15 308 . 70 685 118 742 176 28 31 90 46 . 1 6 186 48 Move 8691 | 71 1055 266 726 199 209 564 531 464 518 698 530 333 617 226 162 259 739 524 Hop 1 | . . . . . . . . . . 1 . . . . . . . . Pick Up 179 | 5 26 2 37 . 9 4 19 3 2 9 1 13 5 1 3 1 18 21 Fast Attach 102 | 7 6 1 6 . 4 3 3 4 . 2 . 6 7 . 2 3 17 31 Attach 93 | . 2 5 11 1 5 . 8 4 2 4 2 5 1 . 1 4 10 28 Detach 45 | . . . . . 1 3 5 3 2 3 . 3 1 . . 4 9 11 Swap 40 | . 9 1 12 2 3 1 . . 1 . . . . . . . 3 8 Drop 186 | . 17 1 32 . 6 25 11 8 2 7 2 11 5 . 2 4 33 20 Fire 602 | 5 42 24 85 . 55 12 20 16 8 23 11 58 44 5 15 18 80 81 Melee 64 | . . . . 4 1 1 1 10 . . . 10 10 . . . 1 26 Ram . | . . . . . . . . . . . . . . . . . . . Kick 1 | . . . . . . . . . . . . . . . . . 1 . Crush . | . . . . . . . . . . . . . . . . . . . Escape Stasis . | . . . . . . . . . . . . . . . . . . . Rewire 212 | . . . . . . 159 . . . 4 . . 49 . . . . . Trap . | . . . . . . . . . . . . . . . . . . . Miscellaneous . | . . . . . . . . . . . . . . . . . . . Route ------- -11/Scrapyard -10/Materials (discovered 5 exits: *Mat x3 / [*Min] / *Sub) -10/Subcaves -8/Materials -7/Factory (discovered 2 exits: *Fac / *Sto) -7/Storage -7/Recycling -5/Factory (discovered 6 exits: *Fac x4 / *Upp x2) -5/Upper Caves -5/Upper Caves (discovered 2 exits: *Fac / *War) -5/Warlord -4/Proximity Caves -4/Factory (discovered 5 exits: *Upp x2 / Ext x2 / Arm) -4/Upper Caves -4/Upper Caves -4/Zhirov -3/Proximity Caves -3/Research -3/Testing History --------- Turn | Location | Event 9 | -11/Scrapyard | Discovered new exit (range 14) 143 | -11/Scrapyard | Entered Materials 308 | -10/Materials | Build established: Mutant 330 | -10/Materials | Discovered new exit (range 11) 1041 | -10/Materials | Discovered new exit (range 4) 1270 | -10/Materials | Discovered new exit (range 9) 1659 | -10/Materials | Learned Storage security intel 1707 | -10/Materials | Loaded intel: 2 recycling unit locations 1798 | -10/Materials | Learned 2 Storage zone layouts 1808 | -10/Materials | Identified exit to Materials 1808 | -10/Materials | Identified exit to Subcaves 1809 | -10/Materials | Learned location of Subcaves (-10) 1838 | -10/Materials | Learned location of Storage (-7) 2586 | -10/Materials | Entered Subcaves 2628 | -10/Subcaves | Discovered new exit (range 8) 2717 | -10/Subcaves | Core integrity fell below 50% 2737 | -10/Subcaves | Lost 4 parts (1p2n1u) 2781 | -10/Subcaves | Identified exit to Materials 2921 | -10/Subcaves | Shifting Twisted Machinery released Sub. Monowheel 2922 | -10/Subcaves | Shifting Twisted Machinery released Sub. Beam Cannon 3270 | -10/Subcaves | Entered Materials 3270 | -8/Materials | Evolved 4 slots: Propulsion x2, Utility x1, Weapon x1 3916 | -8/Materials | Build established: Tank 4259 | -8/Materials | Build established: Skirmisher 5286 | -8/Materials | Discovered new exit (range 16) 5358 | -8/Materials | Identified exit to Factory 5360 | -8/Materials | Entered Factory 5360 | -7/Factory | Evolved 2 slots: Utility x2 5361 | -7/Factory | Identified exit to Storage 5645 | -7/Factory | Discovered new exit (range 7) 5654 | -7/Factory | Identified exit to Factory 5850 | -7/Factory | Entered Storage 6240 | -7/Storage | Used back door to open Recycling access 6240 | -7/Storage | Discovered new exit (range 4) 6245 | -7/Storage | Identified exit to Recycling 6399 | -7/Storage | Destroyed 7 combat bots 6631 | -7/Storage | Entered Recycling 6753 | -7/Recycling | Build established: Scavenger-Skirmisher 6816 | -7/Recycling | Entered Scraplab 6838 | -7/Recycling | Found Prototype Device 6838 | -7/Recycling | Identified Scrap Engine 7285 | -7/Recycling | Build established: Construct 8360 | -7/Recycling | Discovered new exit (range 16) 8385 | -7/Recycling | Build established: Commander-Construct 8642 | -7/Recycling | Learned Hub_04(d) terminal intel 8685 | -7/Recycling | Learned location of 2 exits from Lower Caves 8774 | -7/Recycling | Learned Extension emergency access door positions 8819 | -7/Recycling | Learned 12 Factory zone layouts 8874 | -7/Recycling | Learned location of 2 exits from Upper Caves 8878 | -7/Recycling | Identified exit to Factory 8886 | -7/Recycling | Entered Factory 8886 | -5/Factory | Accompanied by 16 allies 8886 | -5/Factory | Evolved 4 slots: Utility x3, Weapon x1 8887 | -5/Factory | Identified exit to Factory 8887 | -5/Factory | Identified exit to Upper Caves 9090 | -5/Factory | Lost 3 allies 9283 | -5/Factory | Lost 4 allies 9445 | -5/Factory | Discovered exit to Factory (range 15) 9632 | -5/Factory | Lost 4 allies 9833 | -5/Factory | Entered Upper Caves 9834 | -5/Upper Caves | Identified exit to Upper Caves 10039 | -5/Upper Caves | Build established: Construct 10578 | -5/Upper Caves | Spotted B-75 Beast 10737 | -5/Upper Caves | Learned location of 1 exit from Proximity Caves 10805 | -5/Upper Caves | Learned Factory interactive machine intel 10838 | -5/Upper Caves | Entered another Upper Caves area 10993 | -5/Upper Caves | Learned Factory stockpile data 11022 | -5/Upper Caves | Spotted B-75 Beast 11100 | -5/Upper Caves | Learned Factory interactive machine intel 11189 | -5/Upper Caves | Attracted the attention of an 0b10 checkpoint 11219 | -5/Upper Caves | Discovered new exit (range 6) 11221 | -5/Upper Caves | Identified exit to Warlord 11243 | -5/Upper Caves | Entered Warlord 11263 | -5/Warlord | System corruption cleaned by Quarantine Array 12020 | -5/Warlord | Met Warlord 12029 | -5/Warlord | Warlord's base attacked by MAIN.C 12051 | -5/Warlord | Found Prototype Special Weapon 12054 | -5/Warlord | Found Prototype Special Weapon 12190 | -5/Warlord | Found Prototype Energy Gun 12190 | -5/Warlord | Identified Vortex Rifle 12194 | -5/Warlord | Found Vortex Rifle 12204 | -5/Warlord | Found Prototype Energy Gun 12204 | -5/Warlord | Identified Vortex Rail 12208 | -5/Warlord | Found Vortex Rail 12379 | -5/Warlord | Warlord forces counterattacked 12454 | -5/Warlord | Spotted Striker 12457 | -5/Warlord | Spotted Executioner 12469 | -5/Warlord | Spotted Executioner 12501 | -5/Warlord | Destroyed Executioner 12522 | -5/Warlord | Destroyed 9 combat bots 12523 | -5/Warlord | Lost 3 parts (2u1w) 12526 | -5/Warlord | Lost 26 allies 12566 | -5/Warlord | Destroyed 14 combat bots 12598 | -5/Warlord | Discovered new exit (range 9) 12613 | -5/Warlord | Identified exit to Proximity Caves 12629 | -5/Warlord | Entered Proximity Caves 12901 | -4/Proximity Caves | Spotted B-86 Titan 12971 | -4/Proximity Caves | Destroyed B-86 Titan 13072 | -4/Proximity Caves | Learned location of Armory (-4) 13290 | -4/Proximity Caves | Build established: Scavenger-Construct 13768 | -4/Proximity Caves | Entered Factory 13768 | -4/Factory | Evolved 2 slots: Power x1, Utility x1 13770 | -4/Factory | Loaded intel: 54 interactive machine locations 13846 | -4/Factory | Identified exit to Upper Caves 13846 | -4/Factory | Identified exit to Extension 13846 | -4/Factory | Identified exit to Armory 14071 | -4/Factory | Build established: Scavenger-Mutant 14249 | -4/Factory | Lost 4 parts (3u1w) 14672 | -4/Factory | Entered Upper Caves 15102 | -4/Upper Caves | Found Alien Artifact 15102 | -4/Upper Caves | Identified Core Expander 15102 | -4/Upper Caves | Installed Core Expander, added new Weapon slot 15248 | -4/Upper Caves | Attacked by a delusional Derelict stockpiling Unaware 15339 | -4/Upper Caves | Spotted B-86 Titan 15549 | -4/Upper Caves | Build established: Mutant 15973 | -4/Upper Caves | Discovered new exit (range 7) 15982 | -4/Upper Caves | Entered another Upper Caves area 16375 | -4/Upper Caves | Discovered new exit (range 9) 16389 | -4/Upper Caves | Entered Zhirov 16389 | -4/Zhirov | Discovered new exit (range 3) 16421 | -4/Zhirov | Met Zhirov 16452 | -4/Zhirov | Learned location of Testing (-3) 16452 | -4/Zhirov | Learned location of Command (-1) 16470 | -4/Zhirov | Zhirov requested help retrieving the SGEMP Prototype 16498 | -4/Zhirov | Found Alien Artifact 16498 | -4/Zhirov | Identified Integrated Reactor 16498 | -4/Zhirov | Installed Integrated Reactor, increased core energy generation (+10) 16520 | -4/Zhirov | Found Alien Artifact 16712 | -4/Zhirov | Entered Proximity Caves 16821 | -3/Proximity Caves | Build established: Scavenger-Mutant 16850 | -3/Proximity Caves | Spotter reported a threat 16920 | -3/Proximity Caves | Spotter reported a threat 17074 | -3/Proximity Caves | Spotter reported a threat 17188 | -3/Proximity Caves | Discovered new exit (range 14) 17214 | -3/Proximity Caves | System corruption reached 10% 17223 | -3/Proximity Caves | Entered Research 17223 | -3/Research | Evolved 2 slots: Utility x2 17224 | -3/Research | Identified exit to Testing 17239 | -3/Research | Build established: Mutant 17473 | -3/Research | Search patrols dispatched 17854 | -3/Research | Lost 3 parts (3u) 18041 | -3/Research | Spotted B-86 Titan 18068 | -3/Research | Spotted B-86 Titan 18070 | -3/Research | Identified Transdimensional Reconstructor 18070 | -3/Research | Warped through subspace 18371 | -3/Research | Found Prototype Launcher 18371 | -3/Research | Identified Tesla Bomb Launcher 18589 | -3/Research | Build established: Scavenger-Gunner 18798 | -3/Research | Spotted B-86 Titan 18934 | -3/Research | Entered Testing 18964 | -3/Testing | Lost 3 parts (1u2w) 18964 | -3/Testing | Found Prototype Processor 18976 | -3/Testing | System corruption reached 10% 19028 | -3/Testing | Lost 8 parts (1p1n5u1w) 19033 | -3/Testing | Identified Spectral Analyzer 19247 | -3/Testing | Core integrity fell below 50% 19286 | -3/Testing | Lost 4 parts (1n2u1w) 19414 | -3/Testing | Destroyed 7 combat bots 19423 | -3/Testing | Lost 4 parts (2n1u1w) 19434 | -3/Testing | First assault squad dispatched 19525 | -3/Testing | Found Prototype Energy Cannon 19525 | -3/Testing | Identified Potential Cannon 19694 | -3/Testing | Found Prototype Device 19694 | -3/Testing | Identified AEGIS Remote Shield 19746 | -3/Testing | Found Hvy. Reflective Plating 19769 | -3/Testing | Spotted Striker 19769 | -3/Testing | Spotted Striker 19797 | -3/Testing | Found Prototype Device 19797 | -3/Testing | Identified 2N-1CE's Frost Array 19826 | -3/Testing | Destroyed Striker 19829 | -3/Testing | Spotted Alpha 7 19833 | -3/Testing | Destroyed Striker 19842 | -3/Testing | Destroyed Alpha 7 19883 | -3/Testing | Scanned by Researcher 19909 | -3/Testing | Stole the SGEMP Prototype 20044 | -3/Testing | Lost 3 parts (2p1n) 20350 | -3/Testing | Build established: Scavenger-Tank 20387 | -3/Testing | Core integrity fell below 20% 20499 | -3/Testing | Unstable Terrabomb Derivative detonated 20499 | -3/Testing | System corruption reached 30% 20508 | -3/Testing | Spotted PH-PPCTEUUARC 20529 | -3/Testing | Destroyed by P-80 Master with Gamma Rifle Last Messages --------------- 20512_ Acquired Hpw. Shotgun. 20512_ Adv. Signal Interpreter destroyed. 20512_ System corrupted by crushing effect (+3). 20514_ B-74 Champion heat short circuits Med. Treads. 20515_ The unstable cave ceiling collapses. 20515_ Hpw. Shotgun destroyed. 20515_ Mic. Antimatter Reactor destroyed. 20515_ System corrupted by crushing effect (+5). 20515_ System corrupted by crushing effect (+1). 20516_ The unstable cave ceiling collapses. 20520_ Discarded Rnf. Antimatter Reactor. 20520_ Dropped Myomer Leg. 20521_ Dropped Adv. Energy Well. 20522_ P-80 Master resets B-74 Champion, system corruption cleaned. 20523_ The unstable cave ceiling collapses. 20523_ Exp. Reaction Control System destroyed. 20525_ Acquired 45 matter. 20526_ System corrupted: Energy discharge (-20). 20527_ B-74 Champion heat damages Powered Hammer. 20528_ The unstable cave ceiling collapses. Map ----- +----------------------------------------------------+ | #####################????????????????????????????? | | """ #########????????????????????????????? | | ! ""R" # ##????????????????????????????? | | "" " # """ ##????????????????????????????? | | " """ # "T ######????????????????????????? | | " """ # """ ######????????????????????????? | | " """ # + ##????????????????????????? | | " """ # =### ##????????????????????????? | | " """ ##+####### ########?????????????? ""?? | | + #######+########?###????????? "?? | | # ##### #### #######?"" "#? | | ####+######## ##### "S """ ;"""""""" ##" # | | ## c/ ""% """ ; " ## | | # ##+##?## ""%""" ; " # | | # + ?## ! ; | | + ####### ## = ; | | # # # #; ! ; # | | # # ????# ;; ; ^^ # | | ## # ????# ;;;;;;;;+;;; ![ | | # ????# ; ; = === [ | | ? # ????# ! ; ; ! / [ " | | ? # ????####;;; ; p[!! ! % " " | | + ?????##;;;;;;;; ! = " " | | ## # ????+ ; ;;;;+; # ## #| """"" | | ## # ????# """ """ ; ; ! # " | | ## # ???????"" """ ; @ ; * " | | ## # ???????"" """ + ; " " " | | ?? # ???????? ; ; "" " " "" | | ?? ##??????? = ; ; "" """ "" " "" | | ?? ##?????? ; ; """""" "" " "? | | ???????????????""T""" ; ; "" "" "" + | | ??????????????";;;;;;;; ; """"" "" " " | | ???????????????;;;;;;;; ; " """ "" " ?"? | | ??????????????? ; c"" " "" " ?? | | ???????????????? ; " c? "T " ??? | | ???????????????? + """ "" ????? | | ??????????????? ; ?? "" ???????? | | ????????????????;;;;;;;;+;;;;;;;??#"""""?????????? | | ??????????????????! ? ;;;????????????????? | | ????????????????????? ? ? ???????????????????? | | ??????????????????????? ? ?????????????????????? | | ?????????????????????????????????????????????????? | | ?????????????????????????????????????????????????? | | ?????????????????????????????????????????????????? | | ?????????????????????????????????????????????????? | | ?????????????????????????????????????????????????? | | ?????????????????????????????????????????????????? | | ?????????????????????????????????????????????????? | | ?????????????????????????????????????????????????? | | ?????????????????????????????????????????????????? | +----------------------------------------------------+ Best States ------------- Heat Dissipation 103 Energy Generation 47 Energy Capacity 1340 Matter Stores 300 Matter Capacity 300 Sight Range 20 Robot Scan Range 16 Terrain Scan Range 14 Terrain Scan Density 285 Jamming Range 14 Corruption Containment 8 Armor Coverage 600 Resistance: TH 25 Core Shielding 30 Weapon Shielding 66 Evasion (%) 59 Targeting Accuracy 5 Target Analysis 8 Core Analysis 6 Recoil Reduction 4 Offensive Hacking 20 Authchip Count 1 Item Schematics ----------------- Imp. VTOL Module | -8/Materials | Scanalyzed VTOL Module | -8/Materials | Scanalyzed Huge Storage Unit | -8/Materials | Scanalyzed Assault Drone Bay | -4/Zhirov | Free Exp. Heat Sink | -4/Zhirov | Free Exp. Optical Array | -4/Zhirov | Free Imp. Arc Thrower | -4/Zhirov | Free Hvy. Proton Cannon | -3/Testing | Archive Robot Schematics ------------------ None Fabricated ------------ Nothing Repaired ---------- Nothing Alien Tech Used ----------------- Core Expander Integrated Reactor Transdimensional Reconstructor Achievements -------------- None Challenges ------------ None Game ------ Seed GlidesysTrapRipteeth Manual? 0 Play Time 02:07:43 Cumulative 241.8 hours Start 2025.08.16 @ 02:51:34 End 2025.08.16 @ 22:04:33 Sessions 3 Manual Loads 0 Difficulty Rogue Special Mode None Game No. 202 Rogue 202 Adventurer 0 Explorer 0 Win Type - Total 13 Types 6/0/5/2/0/0/0/0/0/0 Lore% 79 Gallery% 74 Achievement% 69 Wizard Run 0 Options --------- Layout 1 ASCII 0 Keyboard 0 Movement Numpad Keybinds 0 Fullscreen 1 Font 32/SmallcapsGlow Map View 77x35 Zoom Use 0% Tactical HUD 1 Map Filters NONE Filters NONE Steam 1 RUN: ccd9cc0a-fb5b-4b69-a3cd-d97f2011a958